bitfinex/quotes_ETHUSD_20251220
["timestamp","ask_amount","ask_price","bid_price","bid_amount"]
[1766237603290,0.446,2978.0,2977.7,6.0689]
[1766237603449,0.446,2978.0,2977.7,8.4636]
[1766237605774,0.001,2978.0,2977.8,6.2764]
[1766237606150,0.001,2978.0,2977.8,8.6711]
[1766237609085,0.001,2978.0,2977.8,6.2764]
[1766237610965,0.001,2978.0,2977.6,2.3947]
[1766237610966,0.001,2978.0,2977.6,6.2764]
[1766237611286,0.001,2978.0,2977.4,9.52474]
[1766237611482,0.001,2978.0,2977.5,0.70688834]
[1766237614494,0.001,2978.0,2977.6,8.9355]
[1766237616801,0.001,2978.0,2977.7,8.9355]
[1766237627004,0.001,2978.0,2977.6,8.9355]
[1766237627201,0.001,2978.0,2977.5,10.34654836]
[1766237627399,0.001,2978.0,2977.8,2.5092]
[1766237627584,0.001,2978.0,2977.8,8.9355]
[1766237630485,0.001,2978.0,2977.6,9.78914]
[1766237631013,0.001,2978.0,2977.5,8.9375]
[1766237631217,0.001,2978.0,2977.6,8.9355]
[1766237631419,0.001,2978.0,2977.5,0.002]
[1766237631586,0.001,2978.0,2977.7,2.5092]
[1766237631787,0.001,2978.0,2977.7,8.9355]
[1766237631999,0.001,2978.0,2977.7,9.82925]
[1766237633615,0.445,2978.2,2977.8,8.9355]
[1766237633815,0.445,2978.2,2977.9,2.5092]
[1766237634021,0.445,2978.2,2977.9,8.9355]
[1766237634391,0.445,2978.2,2977.7,0.89375]
[1766237634592,0.445,2978.2,2977.7,8.9355]
[1766237635223,0.5258,2978.3,2977.7,8.9355]
[1766237635422,0.445,2978.2,2977.7,8.9355]
[1766237636048,0.0798,2978.1,2977.5,0.002]
[1766237636925,0.0798,2978.1,2977.5,6.4283]
[1766237639135,0.0808,2978.1,2977.5,6.4283]
[1766237645245,0.445,2978.0,2977.6,8.979]
[1766237645452,0.445,2978.0,2977.5,0.002]
[1766237645664,0.5248,2978.0,2977.5,0.002]
[1766237645949,0.0798,2977.9,2977.5,0.002]
[1766237648034,0.445,2978.0,2977.5,8.981]
[1766237648234,0.0808,2978.1,2977.5,8.981]
[1766237648855,0.445,2978.0,2977.5,8.981]
[1766237650062,0.0808,2978.1,2977.5,8.981]
[1766237650362,0.445,2977.9,2977.5,8.981]
[1766237651977,0.445,2977.9,2977.5,9.8793]
[1766237652137,0.445,2977.9,2977.5,8.981]
[1766237652852,0.445,2977.9,2977.5,6.5361]
[1766237653150,0.445,2977.9,2977.5,0.002]
[1766237655087,0.0798,2977.8,2977.0,3.35905704]
[1766237655568,0.0798,2977.8,2976.9,0.445]
[1766237655773,0.0798,2977.6,2976.4,8.979]
[1766237656064,0.0798,2977.4,2976.6,8.979]
[1766237656476,0.0798,2977.4,2976.6,6.5341]
[1766237656853,0.0798,2977.4,2976.5,12.99891625]
[1766237657466,0.0798,2977.4,2976.5,19.53301625]
[1766237657977,0.0798,2977.4,2976.6,3.35952102]
[1766237658150,0.0798,2977.4,2976.7,18.61828897]
[1766237658356,0.0798,2977.4,2976.8,8.979]
[1766237659074,0.445,2977.3,2976.9,9.63928897]
[1766237659370,0.0798,2977.4,2976.9,9.63928897]
[1766237659562,0.5248,2977.4,2976.9,18.61828897]
[1766237659958,0.5248,2977.4,2976.9,8.979]
[1766237661460,0.445,2977.3,2977.0,8.6257]
[1766237661674,0.445,2977.3,2977.0,9.48847]
[1766237663683,0.445,2977.4,2977.1,8.6257]
[1766237664377,4.36810433,2978.1,2977.2,0.0335886]
[1766237664378,0.0798,2978.0,2977.2,0.0335886]
[1766237664681,0.0798,2978.0,2977.4,8.6257]
[1766237664682,0.445,2977.6,2977.4,8.6257]
[1766237665378,0.0798,2977.9,2977.4,8.6257]
[1766237665579,0.445,2977.7,2977.4,8.6257]
[1766237666379,0.0798,2977.9,2977.4,8.6257]
[1766237666580,0.445,2977.8,2977.4,8.6257]
[1766237670578,0.0798,2977.9,2977.4,8.6257]
[1766237670882,0.445,2977.7,2977.4,8.6257]
[1766237674458,0.001,2977.7,2977.4,8.6257]
[1766237674790,0.445,2977.7,2977.4,8.6257]
[1766237675387,0.445,2977.7,2977.5,8.6689]
[1766237677603,0.001,2977.7,2977.5,9.36665834]
[1766237677807,0.444,2977.8,2977.6,8.6689]
[1766237678994,0.444,2977.8,2977.6,6.1462]
[1766237680798,0.444,2977.8,2977.4,8.6689]
[1766237681496,0.444,2977.8,2977.4,2.5227]
[1766237681697,0.444,2977.8,2977.5,6.1462]
[1766237681898,0.444,2977.8,2977.6,6.1462]
[1766237682902,0.444,2977.8,2977.6,8.6689]
[1766237683102,0.445,2977.8,2977.6,8.6689]
[1766237684605,0.001,2977.8,2977.6,8.6689]
[1766237688905,0.001,2978.1,2977.6,9.53579]
[1766237689110,0.444,2978.0,2977.7,8.6689]
[1766237691930,0.5248,2978.0,2977.6,0.86689]
[1766237692228,0.5248,2978.0,2977.4,8.6709]
[1766237693099,0.0808,2978.0,2977.4,8.6709]
[1766237693407,0.444,2977.9,2977.4,8.6709]
[1766237700529,0.444,2977.9,2977.5,6.1462]
[1766237700698,0.888,2977.9,2977.7,6.1462]
[1766237700903,0.444,2977.9,2977.7,6.1462]
[1766237701302,0.444,2977.9,2977.6,2.5227]
[1766237701503,0.0798,2977.8,2977.4,0.002]
[1766237701905,0.0798,2977.7,2977.1,0.889]
[1766237702109,0.0798,2977.5,2977.1,0.889]
[1766237702309,0.0798,2977.3,2977.0,0.002]
[1766237702713,0.97195821,2977.2,2977.0,0.002]
[1766237703039,0.0798,2977.1,2977.0,0.002]
[1766237703553,0.97195821,2977.2,2977.0,0.002]
[1766237704113,0.0798,2977.8,2977.0,0.86929]
[1766237704348,0.5238,2977.7,2977.1,8.6689]
[1766237704556,1.49575821,2977.7,2977.1,8.6689]
[1766237704762,1.05175821,2977.7,2977.0,0.002]
[1766237704959,0.444,2977.6,2977.2,8.5387]
[1766237705165,0.0798,2977.5,2977.0,0.002]
[1766237705363,0.0798,2977.5,2977.1,0.85407]
[1766237706163,0.444,2977.4,2977.1,0.85407]
[1766237706550,0.444,2977.3,2977.1,0.85407]
[1766237707175,0.0798,2977.5,2977.1,0.85407]
[1766237707471,0.444,2977.4,2977.0,8.5407]
[1766237709283,0.0798,2977.5,2977.0,8.5407]
[1766237709442,0.444,2977.4,2977.0,8.5407]
[1766237709746,0.444,2977.4,2976.8,0.002]
[1766237709948,0.444,2977.3,2976.8,0.002]
[1766237710142,0.0798,2977.2,2976.8,0.002]
[1766237710338,0.5238,2977.2,2976.9,0.33614206]
[1766237710647,0.444,2977.2,2976.9,0.33614206]
[1766237710842,0.0798,2977.4,2976.9,0.33614206]
[1766237711042,0.444,2977.3,2976.9,0.33614206]
[1766237712578,0.97195821,2977.7,2977.0,8.5387]
[1766237712744,0.444,2977.4,2977.1,8.5387]
[1766237713574,0.5238,2977.4,2976.8,0.002]
[1766237713760,0.5238,2977.4,2976.8,8.5407]
[1766237714592,0.0798,2977.3,2976.8,0.002]
[1766237715875,0.0798,2977.3,2976.8,8.5407]
[1766237716987,1.0093007,2977.5,2976.8,8.5407]
[1766237717192,0.444,2977.2,2976.8,0.002]
[1766237717381,0.444,2977.2,2976.8,8.5407]
[1766237720198,0.444,2977.2,2976.9,8.5387]
[1766237721425,0.444,2977.2,2976.9,6.052]
[1766237722381,0.444,2977.2,2976.8,0.002]
[1766237723497,0.0798,2977.4,2976.8,5.9036]
[1766237723800,0.444,2977.1,2976.9,8.4425]
[1766237724900,0.444,2977.1,2976.8,0.002]
[1766237725122,0.444,2977.1,2976.8,5.9036]
[1766237725397,0.444,2977.1,2976.8,8.4445]
[1766237731006,0.444,2977.1,2976.8,0.002]
[1766237734580,0.5238,2977.1,2976.8,0.002]
[1766237734775,1.5407602,2977.1,2976.8,0.002]
[1766237737715,1.4609602,2977.1,2976.8,0.002]
[1766237737909,0.0798,2977.0,2976.4,2.4845]
[1766237738514,0.0798,2977.0,2976.4,8.3389]
[1766237739978,0.0798,2977.0,2976.3,3.80586189]
[1766237740190,0.0798,2977.0,2976.5,8.3389]
[1766237743117,0.0798,2977.0,2976.5,8.3409]
[1766237744605,0.0798,2977.0,2976.5,0.002]
[1766237745010,0.0798,2977.0,2976.5,8.3409]
[1766237748032,0.0798,2977.0,2976.5,0.002]
[1766237748197,0.0798,2976.9,2976.5,0.002]
[1766237750933,1.39732843,2977.0,2976.5,0.002]
[1766237751233,1.39732843,2977.0,2976.3,0.002]
[1766237751631,0.0798,2976.9,2976.3,0.002]
[1766237751831,1.08929769,2976.9,2976.3,8.3409]
[1766237752032,1.08929769,2976.9,2976.5,0.002]
[1766237752429,1.63855924,2976.9,2976.3,0.002]
[1766237752622,0.0798,2976.8,2976.3,0.002]
[1766237752831,0.444,2976.7,2976.3,5.8564]
[1766237753136,0.444,2976.7,2976.3,8.3409]
[1766237761539,0.0808,2976.9,2976.3,8.3409]
[1766237761727,0.444,2976.7,2976.3,8.3409]
[1766237762648,0.444,2976.7,2976.3,0.002]
[1766237763145,0.444,2976.7,2976.3,5.8564]
[1766237763516,0.444,2976.7,2976.3,8.3409]
[1766237764665,0.444,2976.6,2976.4,8.5109]
[1766237769238,0.444,2976.6,2976.4,8.5129]
[1766237770872,0.001,2976.9,2976.4,8.5129]
[1766237771072,0.444,2976.8,2976.4,8.5129]
[1766237771869,0.444,2976.8,2976.4,0.002]
[1766237772072,0.444,2976.8,2976.5,8.5109]
[1766237773285,0.444,2976.8,2976.4,0.002]
[1766237773451,0.444,2976.8,2976.4,8.5129]
[1766237775191,0.001,2976.9,2976.7,5.9004]
[1766237775485,0.001,2977.1,2976.8,8.5109]
[1766237777688,0.001,2977.2,2976.4,0.86378557]
[1766237777895,0.5248,2977.7,2976.4,0.86378557]
[1766237777896,0.001,2977.7,2977.5,5.9004]
[1766237782279,0.001,2977.7,2977.4,2.6105]
[1766237782486,6.361,2978.0,2977.6,8.2843]
[1766237782487,0.444,2977.8,2977.6,8.2843]
[1766237782652,6.361,2978.0,2977.6,2.4024]
[1766237782846,6.361,2978.0,2977.8,8.2843]
[1766237782847,0.445,2978.0,2977.8,8.2843]
[1766237783574,0.001,2978.0,2977.8,8.2843]
[1766237785183,0.001,2978.1,2977.8,8.2843]
[1766237785953,0.001,2978.0,2977.8,8.2843]
[1766237786877,0.001,2978.0,2977.8,5.8819]
[1766237787079,0.001,2978.0,2977.8,8.2843]
[1766237792295,0.001,2978.3,2977.8,0.70883834]
[1766237792598,0.001,2978.3,2978.0,8.2843]
[1766237793869,0.0808,2978.3,2977.5,5.8839]
[1766237794070,0.001,2978.0,2977.5,5.8839]
[1766237794270,0.0308,2978.1,2977.5,5.8839]
[1766237794576,0.0308,2978.1,2977.6,8.3297]
[1766237796494,0.001,2978.3,2977.5,4.32917282]
[1766237796678,0.444,2978.2,2977.5,3.36052072]
[1766237796877,0.444,2978.2,2977.6,8.3297]
[1766237797174,0.444,2978.2,2977.7,8.3297]
[1766237797372,0.001,2978.3,2977.7,2.4014]
[1766237797573,0.444,2978.2,2977.7,8.3297]
[1766237797800,0.444,2978.2,2977.9,8.3297]
[1766237798096,0.001,2978.3,2977.9,8.3297]
[1766237798298,0.445,2978.3,2977.9,8.3297]
[1766237798598,0.445,2978.3,2977.7,9.49870981]
[1766237799394,0.001,2978.3,2977.7,1.16900981]
[1766237799698,0.001,2978.3,2978.0,2.4014]
[1766237799994,0.001,2978.5,2977.6,3.35838654]
[1766237799995,0.001,2978.5,2978.3,8.3297]
[1766237802595,0.001,2978.7,2978.5,8.3297]
[1766237802901,0.001,2978.9,2978.6,5.9283]
[1766237803088,0.001,2978.9,2978.6,8.3297]
[1766237803786,0.001,2978.9,2978.4,5.9283]
[1766237803966,0.001,2978.9,2978.7,2.4014]
[1766237804172,0.001,2979.0,2978.5,0.92858851]
[1766237804496,0.001,2979.0,2978.8,8.3297]
[1766237805702,0.001,2979.2,2978.6,3.35725679]
[1766237805910,0.001,2979.2,2978.8,2.4014]
[1766237806102,0.001,2979.2,2979.0,8.3297]
[1766237807796,0.001,2979.2,2978.7,5.9283]
[1766237807999,0.001,2979.2,2978.9,8.3297]
[1766237808302,0.001,2979.2,2978.8,0.92855568]
[1766237808476,0.001,2979.2,2979.0,8.3297]
[1766237808804,0.001,2979.5,2979.0,2.4014]
[1766237808967,0.001,2979.5,2979.1,8.3297]
[1766237809568,0.001,2979.5,2979.2,5.9283]
[1766237809976,0.001,2979.5,2979.2,8.3297]
[1766237810186,0.001,2979.5,2979.2,9.16267]
[1766237811707,0.001,2979.5,2979.2,6.76127]
[1766237813419,0.001,2979.5,2979.2,0.83297]
[1766237813611,0.001,2979.5,2979.0,8.3297]
[1766237816488,0.001,2979.5,2978.7,12.12982378]
[1766237816715,0.001,2979.5,2978.8,5.9283]
[1766237816921,0.001,2979.5,2979.1,2.4014]
[1766237819418,0.001,2979.5,2979.1,8.3297]
[1766237820024,0.001,2979.5,2979.0,5.9283]
[1766237820221,0.001,2979.5,2979.2,8.3297]
[1766237821223,0.001,2979.5,2978.8,8.3297]
[1766237823105,0.001,2979.5,2979.1,0.002]
[1766237826423,0.001,2979.5,2978.7,8.6668]
[1766237826744,0.001,2979.5,2978.7,2.5042]
[1766237826949,0.001,2979.5,2978.8,8.6668]
[1766237827112,0.0352,2979.4,2978.8,8.6668]
[1766237828515,0.0352,2979.4,2978.7,0.63044572]
[1766237828846,0.001,2979.5,2978.5,8.6668]
[1766237828847,0.0352,2979.3,2978.5,8.6668]
[1766237829040,0.0352,2979.1,2978.5,8.6668]
[1766237829552,0.0352,2979.1,2978.6,6.1626]
[1766237829714,0.0352,2979.1,2978.6,8.6668]
[1766237830318,0.0352,2979.1,2978.1,0.01009557]
[1766237830516,0.0352,2979.1,2978.3,8.6668]
[1766237830750,0.0352,2978.9,2978.2,9.1098]
[1766237830955,0.0352,2978.9,2978.6,0.002]
[1766237834456,0.443,2979.0,2978.6,0.002]
[1766237834861,0.4782,2979.0,2978.6,0.002]
[1766237837331,0.0352,2978.9,2978.6,0.002]
[1766237841860,0.443,2979.0,2978.6,0.002]
[1766237842379,9.6639564,2979.1,2978.6,0.002]
[1766237842546,9.6287564,2979.4,2978.7,2.4155]
[1766237842746,0.77874191,2979.3,2978.8,8.4126]
[1766237844152,0.0352,2979.4,2978.9,0.03356943]
[1766237844477,0.443,2979.3,2978.9,8.4126]
[1766237844704,0.001,2979.5,2978.9,8.4126]
[1766237844870,0.443,2979.4,2979.0,8.4126]
[1766237845177,0.001,2979.5,2979.1,0.03356718]
[1766237845485,0.001,2979.5,2979.0,9.25386]
[1766237847164,0.001,2979.5,2979.1,8.4126]
[1766237848487,0.001,2979.5,2979.2,8.4126]
[1766237849557,0.001,2979.5,2979.2,9.13186834]
[1766237851793,0.001,2979.5,2979.3,8.4126]
[1766237852169,0.001,2979.5,2979.2,0.71926834]
[1766237852377,0.001,2979.5,2979.0,5.9971]
[1766237852567,0.001,2979.5,2979.0,8.4126]
[1766237852760,0.0362,2979.5,2978.8,8.8576]
[1766237853390,9.63321443,2979.2,2978.8,0.002]
[1766237854089,9.63321443,2979.2,2978.8,8.4146]
[1766237854263,9.6327279,2979.2,2978.8,8.4146]
[1766237855089,9.6327279,2979.2,2978.9,5.8581]
[1766237856399,16.4288279,2979.4,2978.9,5.8581]
[1766237858400,9.6327279,2979.3,2978.9,5.8581]
[1766237859802,6.7961,2979.4,2978.9,5.8581]
[1766237860715,0.001,2979.3,2978.9,5.8581]
[1766237862521,0.001,2979.3,2978.9,8.4386]
[1766237864316,0.001,2979.3,2979.0,8.4386]
[1766237866836,0.001,2979.5,2978.9,1.17977683]
[1766237867134,0.001,2979.5,2979.1,8.4386]
[1766237868426,0.001,2979.5,2979.0,5.8581]
[1766237868734,0.001,2979.5,2979.2,8.4386]
[1766237869324,0.001,2979.5,2978.9,3.35694334]
[1766237869502,0.001,2979.5,2979.2,8.4386]
[1766237870736,0.001,2979.5,2979.2,9.28246]
[1766237872730,2.4779,2979.5,2978.9,8.4386]
[1766237873031,6.885,2979.4,2978.9,8.4386]
[1766237875736,2.4769,2979.4,2979.0,5.8581]
[1766237876237,2.4769,2979.4,2979.0,8.4386]
[1766237878945,2.4769,2979.4,2979.0,8.4406]
[1766237879643,6.9168,2979.3,2979.0,0.002]
[1766237880016,2.4769,2979.3,2979.0,0.002]
[1766237880248,4.4409,2979.5,2979.0,8.4406]
[1766237880848,2.4769,2979.3,2979.0,0.002]
[1766237881057,6.9211,2979.3,2979.0,0.002]
[1766237881843,6.9254,2979.3,2979.0,0.002]
[1766237882048,6.9254,2979.3,2978.6,0.002]
[1766237882049,12.1096279,2979.1,2978.6,0.002]
[1766237882249,6.9254,2979.0,2978.5,0.002]
[1766237882552,9.6327279,2979.1,2978.5,0.002]
[1766237882845,0.443,2979.1,2978.5,0.002]
[1766237883647,6.9339,2979.3,2978.6,15.4908279]
[1766237883852,4.457,2979.0,2978.5,0.002]
[1766237884022,6.9339,2978.9,2978.5,0.002]
[1766237885256,10.0757279,2979.3,2978.5,0.002]
[1766237885456,4.4653,2979.0,2978.5,0.002]
[1766237885750,6.8448,2979.0,2978.5,0.002]
[1766237885923,6.8448,2979.0,2978.6,0.82525]
[1766237886943,13.99872661,2979.5,2978.6,10.4579779]
[1766237886944,3.38918986,2979.5,2978.6,10.4579779]
[1766237887147,6.8529,2979.4,2978.8,5.6666]
[1766237887342,6.8529,2979.4,2978.6,0.82525]
[1766237887343,10.0767279,2979.5,2978.6,0.82525]
[1766237887557,4.4632,2979.4,2978.6,0.82525]
[1766237887854,6.8427,2979.1,2978.7,0.56362572]
[1766237889338,4.4532,2979.4,2978.7,8.81412572]
[1766237889653,0.443,2979.3,2978.8,8.2505]
[1766237889855,7.2658,2979.3,2978.8,8.2505]
[1766237890468,6.8228,2979.2,2978.5,8.6955]
[1766237890637,2.3795,2979.1,2978.5,9.56505]
[1766237891037,6.813,2979.0,2978.5,9.56505]
[1766237891471,6.813,2979.0,2978.5,12.92240745]
[1766237891968,0.443,2979.2,2978.5,4.67190745]
[1766237892269,7.2463,2979.2,2978.6,8.2505]
[1766237892464,7.2463,2979.2,2978.7,0.69097834]
[1766237892763,6.8033,2979.2,2978.7,8.94147834]
[1766237893267,6.7937,2979.4,2978.7,8.94147834]
[1766237893760,2.3795,2979.3,2978.8,8.2505]
[1766237893965,2.3795,2979.3,2978.8,9.12005]
[1766237894167,4.4048,2979.3,2978.8,0.86955]
[1766237894473,2.3805,2979.2,2978.7,8.2505]
[1766237895769,2.3805,2979.2,2978.5,0.445]
[1766237895770,2.3795,2979.0,2978.5,0.445]
[1766237896110,4.3862,2978.8,2978.5,0.445]
[1766237896261,2.3795,2978.9,2978.5,0.445]
[1766237901877,2.3805,2978.9,2978.5,0.445]
[1766237902278,2.3805,2978.9,2978.5,3.80235161]
[1766237902478,0.001,2978.9,2978.5,3.80235161]
[1766237904005,0.001,2978.9,2978.5,12.12635161]
[1766237904190,0.001,2978.9,2978.5,8.769]
[1766237904503,2.3673,2978.9,2978.5,8.769]
[1766237904990,2.3673,2978.9,2978.5,6.4013]
[1766237905299,0.001,2978.9,2978.5,0.445]
[1766237905596,6.6657,2978.8,2978.5,0.445]
[1766237905803,0.001,2978.9,2978.5,0.445]
[1766237907081,0.001,2978.9,2978.5,3.80237572]
[1766237907282,0.001,2978.9,2978.5,12.12637572]
[1766237907706,0.001,2978.9,2978.5,3.80237572]
[1766237907911,0.001,2978.9,2978.6,8.324]
[1766237908993,2.3663,2978.8,2978.5,0.445]
[1766237909168,6.6336,2978.8,2978.5,0.445]
[1766237910002,4.2576,2978.6,2978.1,1.00875769]
[1766237910169,6.6239,2978.5,2978.0,3.80295507]
[1766237910683,6.6239,2978.5,2978.0,12.12695507]
[1766237911083,2.3663,2978.5,2978.0,12.12695507]
[1766237911288,6.6163,2978.7,2978.1,2.3677]
[1766237911497,6.6163,2978.7,2978.1,8.324]
[1766237911701,0.444,2978.9,2978.1,8.324]
[1766237911702,0.001,2978.9,2978.1,8.324]
[1766237911894,7.0527,2978.9,2978.2,2.3677]
[1766237912091,7.0527,2978.9,2978.3,8.324]
[1766237913013,0.001,2978.9,2978.3,2.3677]
[1766237913305,0.001,2978.9,2978.4,8.324]
[1766237916422,0.001,2978.9,2978.4,11.68148878]
[1766237916618,0.001,2978.9,2978.4,8.324]
[1766237917504,0.001,2978.9,2978.5,5.7426]
[1766237917718,0.001,2978.9,2978.7,5.7426]
[1766237918219,0.001,2978.9,2978.6,2.5687]
[1766237923408,0.001,2978.9,2978.6,8.3113]
[1766237923607,0.001,2978.9,2978.7,1.16686499]
[1766237923814,0.001,2978.9,2978.6,8.3113]
[1766237925031,0.001,2978.9,2978.7,5.7426]
[1766237930142,0.001,2978.9,2978.7,8.3113]
[1766237932241,0.001,2978.9,2978.5,3.35939466]
[1766237932443,0.001,2979.2,2978.7,2.5687]
[1766237932743,0.001,2979.2,2978.8,8.3113]
[1766237933225,0.001,2979.2,2978.7,1.16706947]
[1766237933614,0.001,2979.2,2978.7,6.90966947]
[1766237933816,0.001,2979.2,2978.7,3.73576947]
[1766237934015,0.001,2979.2,2978.8,8.3113]
[1766237934253,0.001,2978.9,2978.8,8.70475887]
[1766237934913,0.001,2978.9,2978.8,12.0618154]
[1766237936941,0.001,2979.2,2978.8,12.0618154]
[1766237937126,0.001,2979.2,2978.9,8.3113]
[1766237939725,6.4959,2979.1,2978.5,9.10197925]
[1766237939935,6.4959,2979.1,2978.5,11.67067925]
[1766237940335,6.4959,2979.1,2978.5,3.80237925]
[1766237940536,6.4959,2979.1,2978.6,8.3113]
[1766237941839,6.4959,2979.1,2978.6,8.3133]
[1766237942036,2.4391,2978.9,2978.5,0.002]
[1766237942237,6.4851,2978.9,2978.5,0.002]
[1766237942745,0.443,2979.1,2978.5,0.002]
[1766237943247,6.4798,2978.9,2978.5,0.002]
[1766237943861,2.8831,2979.2,2978.5,3.35938278]
[1766237944041,2.8831,2979.2,2978.7,8.3113]
[1766237944444,6.9135,2979.2,2978.7,8.3113]
[1766237944832,6.4705,2979.2,2978.7,8.3113]
[1766237945164,6.9135,2979.2,2978.7,8.3113]
[1766237945374,0.001,2979.2,2978.9,7.8664]
[1766237945666,0.001,2979.2,2978.7,1.16706828]
[1766237945840,0.001,2979.5,2979.2,2.4194]
[1766237946032,0.001,2979.5,2979.2,7.8664]
[1766237946560,3.065,2979.8,2979.3,5.447]
[1766237946561,0.443,2979.8,2979.3,5.447]
[1766237946865,6.6382,2980.0,2979.4,7.8664]
[1766237947169,0.443,2979.9,2979.4,7.8664]
[1766237947371,7.74599933,2980.0,2979.4,7.8664]
[1766237947576,0.443,2979.9,2979.4,7.8664]
[1766237947866,0.07564143,2980.1,2979.7,2.4194]
[1766237948160,0.07564143,2980.1,2979.7,8.65639627]
[1766237948363,0.07564143,2980.1,2979.8,5.447]
[1766237948534,0.07564143,2980.1,2979.7,8.65639627]
[1766237948734,0.07564143,2980.1,2979.7,5.447]
[1766237948929,2.69764143,2980.1,2979.6,0.443]
[1766237949786,2.69764143,2980.1,2979.5,7.8664]
[1766237950463,3.9107,2980.0,2979.3,0.443]
[1766237950759,2.622,2979.7,2979.0,8.3094]
[1766237950959,0.443,2979.9,2979.1,0.93178898]
[1766237951138,2.622,2979.7,2979.1,0.93178898]
[1766237951338,6.4983,2979.7,2979.1,0.93178898]
[1766237952269,2.69764143,2980.1,2979.3,5.447]
[1766237952486,0.443,2979.8,2979.4,5.447]
[1766237955372,0.26976414,2980.0,2979.5,2.4194]
[1766237955552,0.443,2979.8,2979.5,7.8664]
[1766237956068,0.443,2979.9,2979.5,7.8664]
[1766237956644,0.443,2980.0,2979.3,3.3564856]
[1766237956863,0.001,2979.8,2979.3,3.3564856]
[1766237957060,0.001,2979.8,2979.5,7.8664]
[1766237957241,0.001,2979.8,2979.5,2.4194]
[1766237957456,0.001,2979.8,2979.6,5.447]
[1766237957949,0.001,2979.8,2979.3,5.447]
[1766237958154,2.623,2979.8,2979.2,3.35656775]
[1766237958355,6.2685,2979.7,2979.1,12.15488806]
[1766237958550,0.001,2979.8,2979.2,7.8664]
[1766237958751,0.001,2979.8,2979.2,2.4194]
[1766237958979,0.001,2979.8,2979.3,5.447]
[1766237959945,3.5842,2979.7,2979.0,6.21916324]
[1766237960154,6.2062,2979.7,2979.1,7.8664]
[1766237964975,6.2072,2979.7,2979.1,7.8664]
[1766237968191,0.443,2979.6,2978.8,1.00851353]
[1766237968494,0.443,2979.6,2978.6,7.8465]
[1766237968693,3.2933,2979.3,2978.6,7.8465]
[1766237968853,2.5136,2979.2,2978.6,7.8465]
[1766237969057,5.8069,2979.2,2978.6,7.8465]
[1766237970391,2.5136,2979.2,2978.6,3.35925829]
[1766237970581,2.5136,2979.2,2978.7,7.8445]
[1766237971094,2.5136,2979.2,2978.7,11.20164841]
[1766237971266,0.443,2979.3,2978.7,3.35714841]
[1766237971468,0.443,2979.3,2978.8,7.8445]
[1766237975027,6.0944,2979.3,2978.8,7.8445]
[1766237975585,6.70384,2979.3,2978.8,7.8445]
[1766237977087,6.26084,2979.3,2978.8,7.8445]
[1766237977289,6.70384,2979.3,2978.8,7.8445]
[1766237978137,5.5768,2979.2,2978.7,0.058]
[1766237978338,2.5426,2979.1,2978.7,0.058]
[1766237978640,3.0342,2979.2,2978.7,5.3614]
[1766237978800,3.0342,2979.2,2978.7,7.7449]
[1766237980929,3.0342,2979.2,2978.7,11.10204145]
[1766237981403,6.55714,2979.3,2978.7,11.10204145]
[1766237982237,0.60944,2979.3,2978.8,7.6869]
[1766237982529,0.443,2979.4,2978.8,7.6869]
[1766237982737,5.9011,2979.4,2978.8,7.6869]
[1766237983439,3.3585,2979.4,2978.8,7.6869]
[1766237983639,2.5426,2979.3,2978.8,7.6869]
[1766237984140,5.4351,2979.3,2978.8,7.6869]
[1766237988227,2.5426,2979.3,2978.8,5.74054254]
[1766237988540,0.001,2979.7,2978.8,3.35704254]
[1766237988717,0.001,2979.7,2979.2,7.6869]
[1766237989037,0.444,2979.7,2979.2,7.6869]
[1766237989207,0.001,2979.7,2979.2,2.3835]
[1766237989412,0.001,2979.5,2979.3,5.3034]
[1766237989634,0.001,2979.5,2979.3,7.6869]
[1766237990621,0.001,2979.8,2979.4,5.3034]
[1766237990851,0.001,2980.4,2979.8,7.6869]
[1766237991023,5.2511,2980.3,2979.8,5.3034]
[1766237991455,5.2511,2980.3,2979.6,7.6869]
[1766237991949,9.63151306,2980.4,2979.4,0.443]
[1766237991950,2.4953,2980.0,2979.4,0.443]
[1766237992149,2.7204,2980.0,2979.4,0.443]
[1766237992350,5.2157,2980.0,2979.4,0.443]
[1766237992852,2.4808,2979.9,2979.4,0.443]
[1766237993934,0.07564143,2980.1,2979.4,9.63051306]
[1766237994249,2.98414143,2980.1,2979.6,5.3034]
[1766237994554,0.07564143,2980.1,2979.6,7.6869]
[1766237995154,0.07564143,2980.1,2979.6,2.3835]
[1766237995450,0.07564143,2980.1,2979.7,5.3034]
[1766237996658,0.07564143,2980.1,2979.7,7.6869]
[1766237996953,0.07564143,2980.1,2979.9,7.6869]
[1766237997325,0.443,2980.4,2980.0,5.3034]
[1766237997326,0.001,2980.4,2980.0,5.3034]
[1766237997628,0.001,2980.4,2980.0,7.6869]
[1766237998242,0.001,2980.4,2979.8,9.63051306]
[1766237998453,0.001,2980.4,2980.3,5.3034]